bitfinex/quotes_BTCUSD_20240730
["timestamp","ask_amount","ask_price","bid_price","bid_amount"]
[1722383566060,1.56374617,66384.0,66383.0,0.001913]
[1722383567285,1.56379254,66384.0,66383.0,0.001913]
[1722383570588,1.56280878,66384.0,66383.0,0.001913]
[1722383571009,1.64360878,66384.0,66383.0,0.001913]
[1722383571850,1.94488578,66384.0,66383.0,0.001913]
[1722383572853,1.64360878,66384.0,66383.0,0.001913]
[1722383573460,1.94488578,66384.0,66383.0,0.001913]
[1722383573661,1.80803032,66384.0,66383.0,0.001913]
[1722383573866,1.94397704,66384.0,66383.0,0.001913]
[1722383574226,1.94397735,66384.0,66383.0,0.001913]
[1722383575026,1.64270035,66384.0,66383.0,0.001913]
[1722383575830,1.64241575,66384.0,66383.0,0.001913]
[1722383576453,1.41092143,66384.0,66383.0,0.067613]
[1722383577315,1.41119977,66384.0,66383.0,0.067613]
[1722383578496,1.32469977,66384.0,66383.0,0.143613]
[1722383580414,1.32509358,66384.0,66383.0,0.143613]
[1722383581551,1.02381658,66384.0,66383.0,0.143613]
[1722383582478,0.887482,66384.0,66383.0,0.143613]
[1722383582678,1.0238483,66384.0,66383.0,0.143613]
[1722383582832,1.0008483,66384.0,66383.0,0.142613]
[1722383583038,1.15154262,66384.0,66383.0,0.142613]
[1722383583283,1.15554262,66384.0,66383.0,0.142613]
[1722383583483,1.37827011,66384.0,66383.0,0.142613]
[1722383583804,1.15554262,66384.0,66383.0,0.142613]
[1722383584007,1.15954262,66384.0,66383.0,0.142613]
[1722383584582,1.1596629,66384.0,66383.0,0.142613]
[1722383585938,1.15973843,66384.0,66383.0,0.142613]
[1722383588178,1.38244759,66384.0,66383.0,0.142613]
[1722383589133,1.38242078,66384.0,66383.0,0.142613]
[1722383589994,1.31822646,66384.0,66383.0,0.142613]
[1722383592436,1.18160915,66384.0,66383.0,0.142613]
[1722383592615,1.3188468,66384.0,66383.0,0.142613]
[1722383593043,0.93106891,66384.0,66383.0,0.142613]
[1722383593193,0.70844265,66384.0,66383.0,0.142613]
[1722383593401,0.15652765,66384.0,66383.0,0.142613]
[1722383593920,0.0706583,66384.0,66383.0,0.293253]
[1722383594267,0.0706583,66384.0,66383.0,0.142613]
[1722383594470,0.06307115,66384.0,66383.0,0.142613]
[1722383594913,0.06551575,66384.0,66383.0,0.142613]
[1722383595317,0.06551575,66384.0,66383.0,0.1491672]
[1722383595537,0.06551575,66384.0,66383.0,0.2998072]
[1722383595694,0.06551575,66384.0,66383.0,0.298253]
[1722383595924,0.06551657,66384.0,66383.0,0.147613]
[1722383596088,0.06551657,66384.0,66383.0,0.298253]
[1722383596293,0.06551657,66384.0,66383.0,0.147613]
[1722383596522,0.06551657,66384.0,66383.0,0.300253]
[1722383596924,0.06551657,66384.0,66383.0,0.298253]
[1722383597331,0.21811265,66384.0,66383.0,0.152613]
[1722383597712,0.28511281,66384.0,66383.0,0.152613]
[1722383598238,0.13251673,66384.0,66383.0,0.6060882]
[1722383598462,0.05422657,66384.0,66383.0,0.3048072]
[1722383598661,0.06594789,66384.0,66383.0,0.303253]
[1722383598893,0.06594789,66384.0,66383.0,0.152613]
[1722383599035,0.06594789,66384.0,66383.0,0.604534]
[1722383599036,0.01472132,66384.0,66383.0,0.604534]
[1722383599437,0.003,66384.0,66383.0,0.905815]
[1722383599750,0.2070522,66384.0,66383.0,0.905815]
[1722383599969,0.2070522,66384.0,66383.0,1.293596]
[1722383599970,0.05447428,66384.0,66383.0,1.293596]
[1722383600184,0.20173652,66384.0,66383.0,1.293596]
[1722383600386,0.003,66384.0,66383.0,1.293596]
[1722383600561,0.01468698,66384.0,66383.0,1.293596]
[1722383600764,0.003,66384.0,66383.0,1.293596]
[1722383600976,0.003,66384.0,66383.0,1.288596]
[1722383601180,0.1356145,66387.0,66385.0,0.602544]
[1722383601395,0.1356145,66388.0,66387.0,0.595994]
[1722383601547,0.18741259,66388.0,66387.0,0.594994]
[1722383601746,0.18741259,66388.0,66387.0,0.293731]
[1722383601747,0.05179809,66388.0,66387.0,0.293731]
[1722383601948,0.0354997,66388.0,66387.0,0.293731]
[1722383602168,0.08729779,66388.0,66387.0,0.293731]
[1722383602361,0.08728168,66388.0,66387.0,0.293731]
[1722383602886,0.08728248,66388.0,66387.0,0.594994]
[1722383603094,0.08728248,66388.0,66387.0,0.600994]
[1722383603296,0.05178278,66388.0,66387.0,0.600994]
[1722383603519,0.15247852,66390.0,66388.0,0.150629]
[1722383603728,0.05168514,66389.0,66388.0,0.150629]
[1722383603950,0.001,66388.0,66387.0,0.244231]
[1722383604172,0.05268514,66388.0,66387.0,0.309231]
[1722383604324,0.05268514,66388.0,66387.0,0.603494]
[1722383604531,0.05168514,66388.0,66387.0,0.60647429]
[1722383604741,0.23895379,66389.0,66387.0,0.15458029]
[1722383604943,0.20231414,66388.0,66387.0,0.15458029]
[1722383605142,0.25397565,66388.0,66387.0,0.15458029]
[1722383605568,0.5548982,66388.0,66387.0,0.15458029]
[1722383605799,0.5548982,66388.0,66387.0,0.1456]
[1722383605981,0.70735199,66388.0,66387.0,0.1456]
[1722383606132,0.5548982,66388.0,66387.0,0.1456]
[1722383607214,0.5548982,66388.0,66387.0,0.1526]
[1722383607445,0.8571572,66388.0,66387.0,0.079]
[1722383607622,1.1584162,66388.0,66387.0,0.079]
[1722383607822,1.1574162,66388.0,66387.0,0.065]
[1722383608189,1.1574162,66388.0,66387.0,0.069]
[1722383608389,0.8561572,66388.0,66387.0,0.067]
[1722383608792,0.85625529,66388.0,66387.0,0.067]
[1722383609749,0.85625529,66388.0,66387.0,0.065]
[1722383610930,0.86598648,66388.0,66387.0,0.065]
[1722383611563,0.86798648,66388.0,66387.0,0.065]
[1722383611776,0.451915,66384.0,66383.0,0.000913]
[1722383611997,0.80487265,66384.0,66383.0,0.000913]
[1722383612207,0.81458426,66384.0,66383.0,0.067013]
[1722383612408,0.76290361,66384.0,66383.0,0.067013]
[1722383612628,0.96527861,66384.0,66383.0,0.067013]
[1722383613115,0.66400161,66384.0,66383.0,0.067013]
[1722383613470,0.51312602,66384.0,66383.0,0.067013]
[1722383613646,0.51312602,66384.0,66383.0,0.070013]
[1722383613848,0.81440302,66384.0,66383.0,0.072013]
[1722383614054,1.11553554,66384.0,66383.0,0.005913]
[1722383614259,1.35209031,66384.0,66383.0,0.005913]
[1722383614684,1.35209031,66384.0,66383.0,0.003913]
[1722383614897,1.35209031,66384.0,66383.0,0.000913]
[1722383615102,1.35209031,66384.0,66383.0,0.001913]
[1722383615911,1.2015883,66384.0,66383.0,0.001913]
[1722383616499,1.2015883,66384.0,66383.0,0.000913]
[1722383616675,1.2035883,66384.0,66383.0,0.000913]
[1722383616882,1.2055883,66384.0,66383.0,0.000913]
[1722383618545,1.20705387,66384.0,66383.0,0.000913]
[1722383621960,1.20680696,66384.0,66383.0,0.000913]
[1722383622275,1.20702141,66384.0,66383.0,0.000913]
[1722383622493,0.90574441,66384.0,66383.0,0.143013]
[1722383622691,1.05643873,66384.0,66383.0,0.143013]
[1722383623075,1.05643873,66384.0,66383.0,0.067013]
[1722383623231,1.35771573,66384.0,66383.0,0.000913]
[1722383623816,1.35798141,66384.0,66383.0,0.000913]
[1722383625126,1.21869366,66384.0,66383.0,0.000913]
[1722383625311,1.35784253,66384.0,66383.0,0.000913]
[1722383628574,1.35777592,66384.0,66383.0,0.000913]
[1722383630929,0.150647,66380.0,66379.0,0.0015542]
[1722383631285,0.451963,66377.0,66376.0,0.0015542]
[1722383631465,0.451963,66377.0,66376.0,0.1434542]
[1722383631466,0.50426675,66377.0,66376.0,0.1434542]
[1722383631733,0.5139229,66377.0,66376.0,0.1419]
[1722383633463,0.5149229,66377.0,66376.0,0.1479]
[1722383634035,0.62764315,66377.0,66376.0,0.1539]
[1722383635014,0.57537024,66377.0,66376.0,0.154813]
[1722383635222,0.62753875,66377.0,66376.0,0.154813]
[1722383636039,0.51578766,66377.0,66376.0,0.154813]
[1722383637261,0.81709666,66377.0,66376.0,0.154813]
[1722383638120,0.51578766,66377.0,66376.0,0.154813]
[1722383638278,0.46361915,66377.0,66376.0,0.154813]
[1722383638693,0.51552273,66377.0,66376.0,0.154813]
[1722383638922,0.66810747,66377.0,66376.0,0.154813]
[1722383639184,0.51552273,66377.0,66376.0,0.154813]
[1722383639789,0.81683173,66377.0,66376.0,0.154813]
[1722383639917,0.51552273,66377.0,66376.0,0.154813]
[1722383640328,0.50586658,66377.0,66376.0,0.154813]
[1722383641021,0.453963,66377.0,66376.0,0.154813]
[1722383641448,0.50576437,66377.0,66376.0,0.154813]
[1722383641655,0.453963,66377.0,66376.0,0.154813]
[1722383641829,0.50586462,66377.0,66376.0,0.154813]
[1722383643256,0.59224814,66377.0,66376.0,0.154813]
[1722383644006,0.59225049,66377.0,66376.0,0.154813]
[1722383647085,0.05389414,66377.0,66376.0,0.154813]
[1722383647287,0.002,66377.0,66376.0,0.606782]
[1722383647493,0.05395595,66377.0,66376.0,1.209408]
[1722383647695,0.18961692,66377.0,66376.0,1.209408]
[1722383649349,0.05395595,66377.0,66376.0,1.209408]
[1722383649951,0.18962701,66377.0,66376.0,1.209408]
[1722383650168,0.05395595,66377.0,66376.0,0.908095]
[1722383650540,0.05431969,66377.0,66376.0,0.908095]
[1722383650993,0.002,66377.0,66376.0,0.908095]
[1722383651195,0.18999865,66377.0,66376.0,0.908095]
[1722383651391,0.05431957,66377.0,66376.0,1.209408]
[1722383651592,0.002,66377.0,66376.0,1.209408]
[1722383651851,0.002,66377.0,66376.0,0.908095]
[1722383652813,0.001,66377.0,66376.0,1.203408]
[1722383653219,0.001,66377.0,66376.0,1.215408]
[1722383653220,0.002,66377.0,66376.0,1.215408]
[1722383653442,0.001,66377.0,66376.0,1.209408]
[1722383653649,0.019087,66383.0,66382.0,0.451929]
[1722383653991,0.07237473,66383.0,66382.0,0.594829]
[1722383654192,0.07237473,66383.0,66382.0,0.593829]
[1722383654959,0.07220912,66383.0,66382.0,0.601829]
[1722383655317,0.07220912,66383.0,66382.0,0.308543]
[1722383655935,0.07220912,66383.0,66382.0,0.609829]
[1722383656340,0.07220912,66383.0,66382.0,0.61881086]
[1722383657209,0.07189145,66383.0,66382.0,0.61881086]
[1722383657785,0.07189145,66383.0,66382.0,0.31752486]
[1722383658710,0.07189145,66383.0,66382.0,0.308543]
[1722383660359,0.019087,66383.0,66382.0,0.308543]
[1722383660914,0.07182892,66383.0,66382.0,0.308543]
[1722383661323,0.20741438,66383.0,66382.0,0.308543]
[1722383661525,0.20741465,66383.0,66382.0,0.308543]
[1722383661720,0.07182892,66383.0,66382.0,0.308543]
[1722383662162,0.07182892,66383.0,66382.0,0.1589]
[1722383662398,0.22246892,66383.0,66382.0,0.1589]
[1722383662557,0.22242641,66383.0,66382.0,0.1589]
[1722383662924,0.07178641,66383.0,66382.0,0.1589]
[1722383663552,0.019087,66383.0,66382.0,0.1589]
[1722383663755,0.82505795,66383.0,66382.0,0.016]
[1722383666664,0.52377695,66383.0,66382.0,0.1636]
[1722383666866,0.52390915,66383.0,66382.0,0.1636]
[1722383668059,0.82519015,66383.0,66382.0,0.1636]
[1722383668494,0.82519015,66383.0,66382.0,0.164513]
[1722383668703,0.82602015,66383.0,66382.0,0.164513]
[1722383669171,0.82419725,66383.0,66382.0,0.164513]
[1722383669731,0.97674954,66383.0,66382.0,0.164513]
[1722383670130,0.7712961,66383.0,66382.0,0.164513]
[1722383670333,0.97680354,66383.0,66382.0,0.164513]
[1722383670536,0.824255,66383.0,66382.0,0.164513]
[1722383670741,0.97680654,66383.0,66382.0,0.164513]
[1722383671314,0.67552554,66383.0,66382.0,0.164513]
[1722383671522,0.52297508,66383.0,66382.0,0.164513]
[1722383672233,0.82425608,66383.0,66382.0,0.164513]
[1722383672448,0.82442251,66383.0,66382.0,0.164513]
[1722383673376,0.7712961,66383.0,66382.0,0.164513]
[1722383673565,0.52307599,66383.0,66382.0,0.164513]
[1722383673763,0.67563449,66383.0,66382.0,0.164513]
[1722383675106,0.67563449,66383.0,66382.0,0.465799]
[1722383675107,0.22371349,66383.0,66382.0,0.465799]
[1722383675313,0.07115499,66383.0,66382.0,0.616442]
[1722383675517,0.07115499,66383.0,66382.0,0.917728]
[1722383675817,0.0180941,66383.0,66382.0,0.917728]
[1722383676077,0.0180941,66383.0,66382.0,0.909728]
[1722383676308,0.0180941,66383.0,66382.0,0.901728]
[1722383676793,0.0180941,66383.0,66382.0,0.910728]
[1722383677021,0.07092438,66383.0,66382.0,0.901728]
[1722383677536,0.20650523,66383.0,66382.0,0.922728]
[1722383677772,0.07092438,66383.0,66382.0,0.912728]
[1722383677991,0.20651358,66383.0,66382.0,0.912728]
[1722383678347,0.20651266,66383.0,66382.0,0.924728]
[1722383678551,0.07092438,66383.0,66382.0,0.924728]
[1722383678993,0.20651523,66383.0,66382.0,0.924728]
[1722383679184,0.07092438,66383.0,66382.0,0.924728]
[1722383679990,0.0180941,66383.0,66382.0,0.924728]
[1722383680412,0.07116323,66383.0,66382.0,0.924728]
[1722383680613,0.07116324,66383.0,66382.0,0.924728]
[1722383683437,0.07118443,66383.0,66382.0,0.924728]
[1722383690286,0.07133927,66383.0,66382.0,0.924728]
[1722383692316,0.0180941,66383.0,66382.0,0.924728]
[1722383692629,0.07134411,66383.0,66382.0,0.924728]
[1722383693475,0.07134411,66383.0,66382.0,0.623442]
[1722383693476,0.0180941,66383.0,66382.0,0.623442]
[1722383693697,0.0180941,66383.0,66382.0,0.171513]
[1722383693864,0.07133549,66383.0,66382.0,0.623442]
[1722383696744,0.07077295,66383.0,66382.0,0.623442]
[1722383700312,0.0180941,66383.0,66382.0,0.322156]
[1722383700922,0.07060921,66383.0,66382.0,0.322156]
[1722383701043,0.07060921,66383.0,66382.0,0.623442]
[1722383701920,0.07060921,66383.0,66382.0,0.322156]
[1722383702565,0.4700151,66383.0,66382.0,0.171513]
[1722383702760,0.07065114,66383.0,66382.0,0.171513]
[1722383702960,0.22129114,66383.0,66382.0,0.088613]
[1722383703107,0.6752559,66383.0,66382.0,0.088613]
[1722383703512,0.3739749,66383.0,66382.0,0.088613]
[1722383704311,1.02590843,66383.0,66382.0,0.023913]
[1722383704926,1.30273414,66383.0,66382.0,0.023913]
[1722383705142,1.39001179,66383.0,66382.0,0.023913]
[1722383705547,1.6124943,66383.0,66382.0,0.023913]
[1722383705757,1.52679053,66383.0,66382.0,0.023913]
[1722383705964,1.39061571,66383.0,66382.0,0.023913]
[1722383706165,1.39061571,66383.0,66382.0,0.011913]
[1722383708226,1.39161571,66383.0,66382.0,0.011913]
[1722383708652,1.39161571,66383.0,66382.0,0.000913]
[1722383708860,1.39238247,66383.0,66382.0,0.000913]
[1722383709033,1.39438247,66383.0,66382.0,0.000913]
[1722383712588,1.37988247,66383.0,66382.0,0.000913]
[1722383714215,1.29197785,66383.0,66382.0,0.000913]
[1722383714758,1.38004183,66383.0,66382.0,0.000913]
[1722383715299,1.38020959,66383.0,66382.0,0.000913]
[1722383715485,1.38020959,66383.0,66382.0,0.065613]
[1722383715486,0.82776451,66383.0,66382.0,0.065613]
[1722383715649,0.82781673,66383.0,66382.0,0.065613]
[1722383715874,0.52653573,66383.0,66382.0,0.065613]
[1722383716837,0.52453573,66383.0,66382.0,0.065613]
[1722383717341,0.52553573,66383.0,66382.0,0.065613]
[1722383717589,0.52453573,66383.0,66382.0,0.065613]
[1722383718305,0.82581673,66383.0,66382.0,0.065613]
[1722383718479,0.90511673,66383.0,66382.0,0.000913]
[1722383718866,0.90482923,66383.0,66382.0,0.000913]
[1722383719064,1.03655423,66383.0,66382.0,0.000913]
[1722383719400,0.60354823,66383.0,66382.0,0.000913]
[1722383719934,0.90482923,66383.0,66382.0,0.000913]
[1722383721539,0.60354823,66383.0,66382.0,0.000913]
[1722383721854,0.90482923,66383.0,66382.0,0.000913]
[1722383722058,0.85141479,66383.0,66382.0,0.000913]
[1722383722268,0.90456625,66383.0,66382.0,0.000913]
[1722383722798,0.90453352,66383.0,66382.0,0.000913]
[1722383724106,0.99202781,66383.0,66382.0,0.000913]
[1722383724305,0.99196342,66383.0,66382.0,0.000913]
[1722383727041,0.61138242,66383.0,66382.0,0.000913]
[1722383727265,0.69788242,66383.0,66382.0,0.000913]
[1722383727463,0.99916342,66383.0,66382.0,0.000913]
[1722383727687,0.61138242,66383.0,66382.0,0.000913]
[1722383728039,0.91266342,66383.0,66382.0,0.000913]
[1722383728242,0.61138242,66383.0,66382.0,0.000913]
[1722383728716,0.61251434,66383.0,66382.0,0.000913]
[1722383729365,0.91379534,66383.0,66382.0,0.000913]
[1722383732166,0.91370143,66383.0,66382.0,0.000913]
[1722383732611,0.91393575,66383.0,66382.0,0.000913]
[1722383733929,1.00043575,66383.0,66382.0,0.000913]
[1722383735386,1.00009226,66383.0,66382.0,0.000913]
[1722383735795,1.07599226,66383.0,66382.0,0.000913]
[1722383738577,1.00112236,66383.0,66382.0,0.000913]
[1722383741963,1.00098515,66383.0,66382.0,0.000913]
[1722383742314,0.91447468,66383.0,66382.0,0.000913]
[1722383742541,1.00097468,66383.0,66382.0,0.000913]
[1722383744021,1.00177758,66383.0,66382.0,0.000913]
[1722383745347,1.00177961,66383.0,66382.0,0.000913]
[1722383748602,1.00154277,66383.0,66382.0,0.000913]
[1722383749275,0.91504277,66383.0,66382.0,0.142613]
[1722383750522,1.13780662,66383.0,66382.0,0.142613]
[1722383751160,0.83652562,66383.0,66382.0,0.142613]
[1722383751403,0.61376177,66383.0,66382.0,0.142613]
[1722383751824,0.47083379,66383.0,66382.0,0.142613]
[1722383752040,0.61474684,66383.0,66382.0,0.142613]
[1722383752224,0.61374684,66383.0,66382.0,0.142613]
[1722383752433,0.61374711,66383.0,66382.0,0.142613]
[1722383752657,0.5246138,66383.0,66382.0,0.142613]
[1722383752839,0.6135844,66383.0,66382.0,0.142613]
[1722383753331,0.6135844,66383.0,66382.0,0.143613]
[1722383753988,0.61341397,66383.0,66382.0,0.143613]
[1722383755249,0.91466363,66383.0,66382.0,0.065713]
[1722383756185,1.00116363,66383.0,66382.0,0.065713]
[1722383757587,0.91466363,66383.0,66382.0,0.065713]
[1722383757818,1.00116363,66383.0,66382.0,0.065713]
[1722383759477,0.31210163,66383.0,66382.0,0.065713]
[1722383759600,0.61338263,66383.0,66382.0,0.065713]
[1722383761120,0.46983379,66383.0,66382.0,0.065713]
[1722383761326,0.61509932,66383.0,66382.0,0.065713]
[1722383761545,0.31381832,66383.0,66382.0,0.065713]
[1722383761749,0.61510517,66383.0,66382.0,0.065713]
[1722383762346,0.61510517,66383.0,66382.0,0.148713]
[1722383763388,0.83911119,66383.0,66382.0,0.148713]
[1722383763743,0.61620833,66383.0,66382.0,0.148713]
[1722383763951,0.61624849,66383.0,66382.0,0.148713]
[1722383764365,0.83915129,66383.0,66382.0,0.148713]
[1722383765583,0.53787029,66383.0,66382.0,0.148713]
[1722383765784,0.31496749,66383.0,66382.0,0.148713]
[1722383766208,0.61624849,66383.0,66382.0,0.148713]
[1722383767085,0.46983379,66383.0,66382.0,0.148713]
[1722383767329,0.61614662,66383.0,66382.0,0.148713]
[1722383769743,0.31486562,66383.0,66382.0,0.148713]
[1722383769902,0.16422562,66383.0,66382.0,0.148713]
[1722383770124,0.16422562,66383.0,66382.0,0.600642]
[1722383770372,0.01791279,66383.0,66382.0,0.901928]
[1722383770577,0.07394879,66383.0,66382.0,0.901928]
[1722383770796,0.22672583,66383.0,66382.0,0.901928]
[1722383771082,0.22713742,66383.0,66382.0,0.901928]
[1722383771597,0.22713742,66383.0,66382.0,0.902928]
[1722383771598,0.07435877,66383.0,66382.0,0.902928]
[1722383772246,0.07435877,66383.0,66382.0,0.900928]
[1722383772429,0.07435877,66383.0,66382.0,0.909928]
[1722383772582,0.07535877,66383.0,66382.0,0.919928]
[1722383773181,0.07535877,66383.0,66382.0,0.317356]
[1722383773383,0.2280715,66383.0,66382.0,0.166713]
[1722383773586,0.07535877,66383.0,66382.0,0.166713]
[1722383773780,0.47083379,66383.0,66382.0,0.0852672]
[1722383773980,0.89988649,66383.0,66382.0,0.019913]
[1722383774182,0.99072847,66383.0,66382.0,0.019913]
[1722383775216,1.38950947,66383.0,66382.0,0.019913]
[1722383775451,1.49501274,66383.0,66382.0,0.019913]
[1722383775653,1.92929374,66383.0,66382.0,0.019913]
[1722383775969,1.92829374,66383.0,66382.0,0.010913]
[1722383776269,1.92829374,66383.0,66382.0,0.000913]
[1722383776473,1.93029374,66383.0,66382.0,0.000913]
[1722383777035,1.91029374,66383.0,66382.0,0.000913]
[1722383777236,1.93029374,66383.0,66382.0,0.000913]
[1722383777439,1.93129374,66383.0,66382.0,0.000913]
[1722383777920,1.93029374,66383.0,66382.0,0.000913]
[1722383778328,1.91229374,66383.0,66382.0,0.000913]
[1722383778803,1.92229374,66383.0,66382.0,0.000913]
[1722383779002,1.91029374,66383.0,66382.0,0.000913]
[1722383779199,1.90029374,66383.0,66382.0,0.000913]
[1722383779402,1.60401274,66383.0,66382.0,0.000913]
[1722383779809,1.90529374,66383.0,66382.0,0.000913]
[1722383780009,1.91529374,66383.0,66382.0,0.000913]
[1722383780413,1.86012849,66383.0,66382.0,0.000913]
[1722383780613,1.91714986,66383.0,66382.0,0.000913]
[1722383780817,1.76886788,66383.0,66382.0,0.000913]
[1722383780995,1.91715008,66383.0,66382.0,0.000913]
[1722383782089,1.76886788,66383.0,66382.0,0.000913]
[1722383782291,1.93698475,66383.0,66382.0,0.000913]
[1722383782519,1.78886788,66383.0,66382.0,0.000913]
[1722383782685,1.91698946,66383.0,66382.0,0.000913]
[1722383782914,1.92698946,66383.0,66382.0,0.000913]
[1722383783091,1.93698946,66383.0,66382.0,0.000913]
[1722383783897,2.02774064,66383.0,66382.0,0.000913]
[1722383784535,1.93669541,66383.0,66382.0,0.000913]
[1722383785797,1.60541441,66383.0,66382.0,0.000913]
[1722383785909,1.54026332,66383.0,66382.0,0.000913]
[1722383786485,1.85154432,66383.0,66382.0,0.000913]
[1722383786678,1.87154432,66383.0,66382.0,0.000913]
[1722383787085,1.72371679,66383.0,66382.0,0.000913]
[1722383787229,1.87157534,66383.0,66382.0,0.000913]
[1722383787879,1.85157534,66383.0,66382.0,0.000913]
[1722383788265,2.00226966,66383.0,66382.0,0.000913]
[1722383788669,1.99226966,66383.0,66382.0,0.000913]
[1722383789011,2.00226966,66383.0,66382.0,0.000913]
[1722383789238,1.99226966,66383.0,66382.0,0.000913]
[1722383790189,2.00226966,66383.0,66382.0,0.000913]
[1722383790583,2.00285049,66383.0,66382.0,0.000913]
[1722383790922,1.85441111,66383.0,66382.0,0.000913]
[1722383791120,2.00285049,66383.0,66382.0,0.000913]
[1722383793745,2.02296052,66383.0,66382.0,0.000913]
[1722383795351,2.00296052,66383.0,66382.0,0.000913]
[1722383795709,2.02296052,66383.0,66382.0,0.000913]
[1722383796302,2.00296052,66383.0,66382.0,0.000913]
[1722383796707,2.02296052,66383.0,66382.0,0.000913]
[1722383797147,2.02212635,66383.0,66382.0,0.000913]
[1722383797354,2.00212635,66383.0,66382.0,0.000913]
[1722383797762,2.02194504,66383.0,66382.0,0.000913]
[1722383797887,2.00194504,66383.0,66382.0,0.000913]
[1722383799120,2.02194504,66383.0,66382.0,0.000913]
[1722383799895,2.00194504,66383.0,66382.0,0.000913]
[1722383800547,2.02164782,66383.0,66382.0,0.000913]
[1722383800995,2.02164912,66383.0,66382.0,0.000913]
[1722383802497,2.02068373,66383.0,66382.0,0.000913]
[1722383803557,2.01568373,66383.0,66382.0,0.000913]
[1722383803766,2.01368373,66383.0,66382.0,0.000913]
[1722383803975,2.01668373,66383.0,66382.0,0.001913]
[1722383804427,2.00218373,66383.0,66382.0,0.001913]
[1722383804637,1.81268373,66383.0,66382.0,0.001913]
[1722383804852,1.89918373,66383.0,66382.0,0.001913]
[1722383805051,1.91018373,66383.0,66382.0,0.002913]
[1722383806694,1.93018373,66383.0,66382.0,0.002913]
[1722383806910,1.92067433,66383.0,66382.0,0.002913]
[1722383807143,1.93067433,66383.0,66382.0,0.002913]
[1722383807367,1.92067433,66383.0,66382.0,0.002913]
[1722383807995,1.93067433,66383.0,66382.0,0.002913]
[1722383810837,1.93056656,66383.0,66382.0,0.002913]
[1722383816835,1.92980706,66383.0,66382.0,0.002913]
[1722383817670,1.9300677,66383.0,66382.0,0.002913]
[1722383820196,1.7837298,66383.0,66382.0,0.002913]
[1722383820339,1.77926975,66383.0,66382.0,0.002913]
[1722383820531,2.02393557,66383.0,66382.0,0.002913]
[1722383820738,2.02393383,66383.0,66382.0,0.002913]
[1722383820952,2.02393406,66383.0,66382.0,0.002913]
[1722383821131,2.17462838,66383.0,66382.0,0.002913]
[1722383821539,1.92996256,66383.0,66382.0,0.002913]
[1722383822405,1.7837298,66383.0,66382.0,0.002913]
[1722383822599,1.93067973,66383.0,66382.0,0.002913]
[1722383825917,1.9308024,66383.0,66382.0,0.002913]
[1722383828400,1.9108024,66383.0,66382.0,0.002913]
[1722383829321,1.9308024,66383.0,66382.0,0.002913]
[1722383830340,2.17607114,66383.0,66382.0,0.002913]
[1722383830536,1.9308024,66383.0,66382.0,0.002913]
[1722383831503,1.95444349,66383.0,66382.0,0.002913]
[1722383832312,1.80737089,66383.0,66382.0,0.002913]
[1722383832574,1.95467673,66383.0,66382.0,0.002913]
[1722383834997,1.94467673,66383.0,66382.0,0.002913]
[1722383835239,1.93467673,66383.0,66382.0,0.002913]
[1722383835780,1.93506215,66383.0,66382.0,0.002913]
[1722383836185,1.85856215,66383.0,66382.0,0.002913]
[1722383836400,1.79436783,66383.0,66382.0,0.002913]
[1722383836599,1.80436783,66383.0,66382.0,0.002913]
[1722383836795,1.78436783,66383.0,66382.0,0.002913]
[1722383837218,1.78072674,66383.0,66382.0,0.002913]
[1722383837400,1.93142106,66383.0,66382.0,0.002913]
[1722383838844,1.87471302,66383.0,66382.0,0.002913]
[1722383839076,1.93245457,66383.0,66382.0,0.002913]
[1722383839209,2.02394193,66383.0,66382.0,0.002913]
[1722383839520,2.02394194,66383.0,66382.0,0.002913]
[1722383841038,2.02394225,66383.0,66382.0,0.002913]
[1722383842250,1.87521717,66383.0,66382.0,0.002913]
[1722383842532,2.02393615,66383.0,66382.0,0.002913]
[1722383843490,2.32393615,66383.0,66382.0,0.002913]
[1722383845216,2.23743615,66383.0,66382.0,0.002913]
[1722383845420,2.15324183,66383.0,66382.0,0.002913]
[1722383845602,2.15366512,66383.0,66382.0,0.002913]
[1722383846020,2.06217775,66383.0,66382.0,0.002913]
[1722383848308,2.06217775,66383.0,66382.0,0.102913]
[1722383848507,2.21287207,66383.0,66382.0,0.102913]
[1722383848705,2.0637298,66383.0,66382.0,0.102913]
[1722383848885,2.21426822,66383.0,66382.0,0.102913]
[1722383851315,2.23426822,66383.0,66382.0,0.102913]
[1722383855546,2.23215335,66383.0,66382.0,0.102913]
[1722383857060,2.21215335,66383.0,66382.0,0.102913]
[1722383857425,2.12565335,66383.0,66382.0,0.102913]
[1722383857985,2.21215335,66383.0,66382.0,0.102913]
[1722383858366,2.22215335,66383.0,66382.0,0.102913]
[1722383858672,2.0637298,66383.0,66382.0,0.102913]
[1722383858907,2.2130406,66383.0,66382.0,0.102913]
[1722383861580,2.2230406,66383.0,66382.0,0.102913]
[1722383861809,2.2130406,66383.0,66382.0,0.102913]
[1722383861970,2.0637298,66383.0,66382.0,0.102913]
[1722383862172,2.2134002,66383.0,66382.0,0.102913]
[1722383863626,2.2334002,66383.0,66382.0,0.102913]
[1722383863880,2.2134002,66383.0,66382.0,0.102913]
[1722383865446,2.12139816,66383.0,66382.0,0.102913]
[1722383865679,2.21329604,66383.0,66382.0,0.102913]
[1722383868750,2.15565659,66383.0,66382.0,0.102913]
[1722383868953,2.22335531,66383.0,66382.0,0.102913]
[1722383869161,2.21335531,66383.0,66382.0,0.102913]
[1722383870326,2.21335531,66383.0,66382.0,0.166213]
[1722383870878,2.21372734,66383.0,66382.0,0.166213]
[1722383872051,2.21398038,66383.0,66382.0,0.166213]
[1722383875453,2.21390944,66383.0,66382.0,0.166213]
[1722383878622,2.21385454,66383.0,66382.0,0.166213]
[1722383879042,2.21382895,66383.0,66382.0,0.166213]
[1722383881273,2.12171137,66383.0,66382.0,0.166213]
[1722383881474,2.21390783,66383.0,66382.0,0.166213]
[1722383882716,2.03021351,66383.0,66382.0,0.248313]
[1722383884249,2.02986295,66383.0,66382.0,0.248313]
[1722383884450,2.2751799,66383.0,66382.0,0.248313]
[1722383884653,2.02986295,66383.0,66382.0,0.248313]
[1722383886596,2.27515036,66383.0,66382.0,0.248313]
[1722383886801,2.18055727,66383.0,66382.0,0.248313]
[1722383887339,2.0307298,66383.0,66382.0,0.248313]
[1722383887517,2.1805239,66383.0,66382.0,0.248313]